Cogmind - Beta 13 @@@ ROGUE MODE // 2024.07.23 @ 23:01:48 Player: Occam Result: Self-destructed Performance ------------- Evolutions (2) 1000 Regions Visited (3) 600 Robots Destroyed (37) 185 Value Destroyed (943) 943 Prototype IDs (1) 20 Alien Tech Used (0) 0 Bonus (-29) -29 TOTAL SCORE: 2719 Bonus ------- Friendly Fire -29 Cogmind --------- Core Integrity 522/550 Matter 14/300 Energy 100/100 System Corruption 0% Temperature Warning (358) Movement Treading (305) Ox2 Location -8/Materials Parts ------- > --- POWER (1) -------- Subdweller Power Source > --- PROPULSION (2) --- Advanced Treads Armored Wheel > --- UTILITY (6) ------ Large Storage Unit Structural Scanner Advanced Targeting Computer Hardened Medium Armor Plating Gun Armor Hacking Suite > --- WEAPON (2+2) ----- Battle Rifle Subdweller Machine Gun High-powered Shotgun (+) Bore Cannon (+) > --- INVENTORY (15) --- Subdweller Power Source Deuterium Engine Light Treads Compact Wheel Hacking Suite Hacking Suite System Shield Medium Laser Light Assault Rifle Datajack Peak State ------------ > --- POWER ------------ Subdweller Power Source > --- PROPULSION ------- Advanced Treads Armored Wheel > --- UTILITY ---------- Large Storage Unit Structural Scanner Advanced Targeting Computer Hardened Medium Armor Plating Gun Armor Hacking Suite > --- WEAPON ----------- Battle Rifle Subdweller Machine Gun High-powered Shotgun Bore Cannon > --- INVENTORY -------- Subdweller Power Source Deuterium Engine Light Treads Compact Wheel Hacking Suite Hacking Suite System Shield Medium Laser Light Assault Rifle Datajack [Rating: 40] Favorites ----------- Power Ion Engine Engine Ion Engine Propulsion Light Treads Treads Light Treads Leg Aluminum Leg Wheel Armored Wheel Utility Large Storage Unit Device Structural Scanner Storage Large Storage Unit Processor Advanced Targeting Computer Hackware Hacking Suite Protection Scrap Shield Weapon Assault Rifle Energy Gun Small Laser Energy Cannon Beam Cannon Ballistic Gun Assault Rifle Ballistic Cannon Bore Cannon Build | -11 -10 -10 -8 ------- Run | Yrd Mat Sub Mat Slots Evolved 4 | . . . 4 Power . | . . . . Propulsion . | . . . . Utility 4 | . . . 4 Weapon . | . . . . Parts Attached 30 | 1 12 9 8 Power 5 | . 3 2 . Engine 5 | . 3 2 . Core . | . . . . Reactor . | . . . . Propulsion 7 | . 3 2 2 Treads 5 | . 3 1 1 Leg . | . . . . Wheel 2 | . . 1 1 Hover . | . . . . Flight . | . . . . Utility 10 | 1 2 2 5 Device 3 | 1 1 . 1 Storage 2 | . 1 . 1 Processor 1 | . . . 1 Hackware 1 | . . . 1 Protection 3 | . . 2 1 Artifact . | . . . . Weapon 8 | . 4 3 1 Energy Gun 2 | . 2 . . Energy Cannon 1 | . 1 . . Ballistic Gun 4 | . 1 2 1 Ballistic Cannon 1 | . . 1 . Launcher . | . . . . Special Weapon . | . . . . Impact Weapon . | . . . . Slashing Weapon . | . . . . Piercing Weapon . | . . . . Special Melee Weapon . | . . . . Unidentified Prototypes 1 | . . 1 . Parts Lost 5 | . 3 2 . Power 1 | . 1 . . Propulsion 2 | . 1 1 . Utility . | . . . . Weapon 2 | . 1 1 . Highest Loss Streak 1 | . 1 1 . To Critical Strikes . | . . . . Average Slot Usage (%) 93 | . 99 83 82 Engine 12 | . 13 13 7 Treads 23 | . 27 24 7 Wheel 1 | . . 2 7 Device 9 | . 14 . 7 Storage 9 | . 14 . 6 Protection 4 | . . 12 9 Energy Gun 10 | . 14 4 . Ballistic Gun 16 | . 12 22 21 Ballistic Cannon 1 | . . 1 7 Naked Turns . | . . . . Heaviest Build 56 | 12 30 30 56 Greatest Support 40 | 20 40 40 16 Greatest Overweight (x) 4 | . . 1 4 Average Overweight (x) . | . . . 2 Largest Inventory Capacity 15 | 8 15 15 15 Average Capacity 11 | 8 14 5 14 Most Carried 15 | 7 15 15 11 Average Carried 9 | 5 11 5 7 Final Capacity 15 | 8 15 5 15 Final Carried 14 | 6 14 5 10 Class Distribution -------------------- 83% | Mutant 9% | Scavenger-Skirmisher 7% | Scavenger-Gunner Dominant Class ---------------- Mutant | -10/Materials Mutant | -10/Subcaves Scavenger-Skirmisher | -8/Materials Resources | -11 -10 -10 -8 ----------- Run | Yrd Mat Sub Mat Matter Collected 1119 | 231 506 277 105 Remotely . | . . . . Salvage Created 1340 | 129 885 99 227 Parts 87 | 9 58 10 10 Haulers Intercepted 2 | . 2 . . Recyclers Shooed 3 | . 3 . . Parts Field Recycled . | . . . . Retrieved Matter . | . . . . Parts Self-Destructed 3 | . . 3 . Prevented . | . . . . Kills | -11 -10 -10 -8 ------- Run | Yrd Mat Sub Mat Combat Hostiles Destroyed 25 | . 15 3 7 Guns 24 | . 15 3 6 Cannons 1 | . . . 1 Classes Destroyed 10 | 2 5 1 2 Tunneler 2 | 2 . . . Hauler 2 | . 2 . . Recycler 3 | 1 2 . . Operator 2 | . 2 . . Watcher 3 | . 2 . 1 Swarmer 6 | . 3 . 3 Grunt 14 | . 12 . 2 Sentry 1 | . . . 1 Hunter 1 | . . . 1 Subdweller 3 | . . 3 . Best Kill Streak 4 | 2 4 2 2 Combat Bots Only 3 | . 3 2 2 Max Kills in Single Turn 2 | 1 1 1 2 Gunslinging . | . . . . Exploded . | . . . . Melee . | . . . . Uniques/NPCs Destroyed . | . . . . Combat | -11 -10 -10 -8 -------- Run | Yrd Mat Sub Mat Hostile Shots Fired 170 | . 88 37 45 Missed 45 | . 20 11 14 Damage Taken 1834 | . 769 611 454 Core 272 | . 175 69 28 Absorbed by Shields . | . . . . Core Remaining (%) 51 | 100 . 2 . Volleys Fired 141 | 7 86 29 19 Largest 4 | 2 2 2 4 Hottest 137 | 60 100 70 137 Shots Fired 318 | 14 170 58 76 Gun 298 | 14 169 58 57 Cannon 20 | . 1 . 19 Launcher . | . . . . Special . | . . . . Kinetic 210 | 7 78 49 76 Thermal 108 | 7 92 9 . Explosive . | . . . . Electromagnetic . | . . . . Robot Hit Streak 12 | 10 12 6 6 Robot Miss Streak 8 | 2 7 2 8 Penetration Max . | . . . . Secondary Targets 1 | . . 1 . Max Gunslinging Chain 1 | . . 1 . Shots Hit Robots 183 | 11 102 37 33 Core Hits 68 | 4 44 7 13 Critical Kills . | . . . . Critical Parts Destroyed 4 | . 1 . 3 Critical Strikes 8 | . 3 1 4 Burn 2 | . 2 . . Destroy 6 | . 1 1 4 Melee Attacks . | . . . . Impact . | . . . . Slashing . | . . . . Piercing . | . . . . Sneak Attacks . | . . . . Combat Hostiles . | . . . . Follow-up Attacks . | . . . . Damage Inflicted 2594 | 134 1255 550 655 Guns 2428 | 134 1255 550 489 Cannons 166 | . . . 166 Explosions . | . . . . Melee . | . . . . Ramming . | . . . . Kinetic 1802 | 75 561 511 655 Thermal 792 | 59 694 39 . Explosive . | . . . . Electromagnetic . | . . . . Impact . | . . . . Slashing . | . . . . Piercing . | . . . . Highest Corruption 5 | . 5 5 . Average Corruption 3 | . 2 5 . Corruption Purged . | . . . . Corruption Blocked . | . . . . Effects 26 | . 9 17 . Message Errors 4 | . 2 2 . Matter Fused 10 | . 5 5 . Heat Flow Errors 2 | . 1 1 . Energy Discharges 3 | . 1 2 . Data Loss (minor) 2 | . . 2 . Misfires 1 | . . 1 . Alerts 4 | . . 4 . Overload Shots . | . . . . Overflow Damage . | . . . . Projectiles . | . . . . Explosions . | . . . . Melee . | . . . . Knockbacks 1 | . . . 1 Impact . | . . . . Kinetic 1 | . . . 1 Secondary . | . . . . Self-Inflicted Damage . | . . . . Shots . | . . . . Rammed . | . . . . Targets Rammed . | . . . . Kicked . | . . . . Crushed . | . . . . Highest Temperature 384 | . 234 87 384 Average Temperature 67 | . 53 48 105 Received Heat Transfer 696 | . 426 63 207 Siege Activations . | . . . . Robots Corrupted . | . . . . Combat Hostiles . | . . . . Parts Fried . | . . . . Impact Corruptions . | . . . . Robots Melted . | . . . . Combat Hostiles . | . . . . Parts Melted 4 | . 2 2 . Heat Transferred 2028 | 125 1792 111 . Parts Sabotaged . | . . . . Parts Stolen . | . . . . Parts Stripped . | . . . . Power Chain Reactions . | . . . . Alert | -11 -10 -10 -8 ------- Run | Yrd Mat Sub Mat Peak Influence 277 | 15 263 . 277 Initial 9 | . 9 . . Average 107 | 10 114 . 101 Maximum Alert Level 1 | . 1 . 1 Low Security (%) 90 | 100 94 . 69 Level 1 9 | . 5 . 30 Level 2 . | . . . . Level 3 . | . . . . Level 4 . | . . . . Level 5 . | . . . . High Security . | . . . . Max Security . | . . . . Squads Dispatched 9 | . 7 . 2 Investigation 5 | . 4 . 1 Extermination . | . . . . Reinforcement 4 | . 3 . 1 Assault . | . . . . Garrison . | . . . . Intercept . | . . . . Searches Triggered . | . . . . Construction Impeded . | . . . . Haulers Reinforced . | . . . . Active Scanning Responses . | . . . . Cargo Convoy Interrupts . | . . . . Stealth | -11 -10 -10 -8 --------- Run | Yrd Mat Sub Mat Distress Signals . | . . . . Communications Jammed . | . . . . Distress Signals . | . . . . Times Spotted 51 | . 24 15 12 Peak Tracking Total 6 | . 4 6 5 Tactical Retreats 2 | . 1 . 1 Traps | -11 -10 -10 -8 ------- Run | Yrd Mat Sub Mat Traps Triggered 6 | . 6 . . Indirectly . | . . . . Trap Hack Attempts . | . . . . Triggered . | . . . . Disarmed 3 | . 3 . . Reprogrammed . | . . . . Reused . | . . . . Traps Extracted . | . . . . Installed . | . . . . Triggered . | . . . . Machines | -11 -10 -10 -8 ---------- Run | Yrd Mat Sub Mat Machines Disabled 1 | . . . 1 Max in Single Turn 1 | . . . 1 Garrison Access 1 | . . . 1 Machines Repaired . | . . . . Machines Dismantled . | . . . . Machines Sabotaged . | . . . . Overloaded Fab Kills . | . . . . Hacking | -11 -10 -10 -8 --------- Run | Yrd Mat Sub Mat Machines Accessed 8 | . 5 . 3 Terminals 7 | . 5 . 2 Fabricators . | . . . . Repair Stations . | . . . . Recycling Units . | . . . . Scanalyzers . | . . . . Garrison Access 1 | . . . 1 Total Hacks 28 | . 21 . 7 Successful 14 | . 10 . 4 Failed 13 | . 10 . 3 Catastrophic . | . . . . Database Lockouts 1 | . 1 . . Manual 18 | . 12 . 6 Terminals 27 | . 21 . 6 Fabricators . | . . . . Repair Stations . | . . . . Recycling Units . | . . . . Scanalyzers . | . . . . Garrison Access 1 | . . . 1 Terminal Hacks 8 | . 7 . 1 Robot Analysis 1 | . 1 . . Terminal Index 2 | . 1 . 1 Locate Traps 2 | . 2 . . Disarm Traps 1 | . 1 . . Dispatch Records 1 | . 1 . . Hauler Manifests 1 | . 1 . . Fabricator Hacks . | . . . . Repair Station Hacks . | . . . . Recycling Unit Hacks . | . . . . Scanalyzer . | . . . . Garrison Access Hacks 1 | . . . 1 Seal Access 1 | . . . 1 Unauthorized Hacks 5 | . 3 . 2 Terminals 5 | . 3 . 2 Botnet 4 | . 2 . 2 Operators 1 | . 1 . . Fabricators . | . . . . Repair Stations . | . . . . Recycling Units . | . . . . Scanalyzers . | . . . . Garrison Access . | . . . . Data Cores Recovered . | . . . . Used . | . . . . Hacking Detections 6 | . 4 . 2 Full Trace Events 5 | . 4 . 1 Feedback Events . | . . . . Feedback Blocked . | . . . . Robot Schematics Acquired . | . . . . Robots Built . | . . . . Authchips . | . . . . Time . | . . . . Total Robot Build Rating . | . . . . Part Schematics Acquired . | . . . . Parts Built . | . . . . Authchips . | . . . . Time . | . . . . Total Part Build Rating . | . . . . Parts Repaired . | . . . . Time . | . . . . Parts Recycled . | . . . . Recycled Matter . | . . . . Retrieved Matter . | . . . . Retrieved Components . | . . . . Parts Scanalyzed . | . . . . Part Schematics Acquired . | . . . . Parts Damaged . | . . . . Bothacking | -11 -10 -10 -8 ------------ Run | Yrd Mat Sub Mat Used RIF Installer . | . . . . Robots Hacked . | . . . . Non-combat . | . . . . Combat . | . . . . Robot Hacks Applied . | . . . . Relay Couplers Released . | . . . . Fabnet Peak Effective % . | . . . . Robots Rewired . | . . . . Allies Hacked . | . . . . Hacks Repelled . | . . . . Allies | -11 -10 -10 -8 -------- Run | Yrd Mat Sub Mat Total Allies . | . . . . Largest Group . | . . . . Highest-Rated Group . | . . . . Highest-Rated Ally . | . . . . Total Orders . | . . . . Ally Attacks . | . . . . Total Damage . | . . . . Kills . | . . . . Allies Corrupted . | . . . . Allies Melted . | . . . . Intel | -11 -10 -10 -8 ------- Run | Yrd Mat Sub Mat Robot Analysis Total 1 | . 1 . . Derelict Logs Recovered . | . . . . Drone Launches . | . . . . Drone Recoveries . | . . . . Exploration | -11 -10 -10 -8 ------------- Run | Yrd Mat Sub Mat Turns Passed 2517 | 91 1432 679 315 Spaces Moved 1225 | 33 655 376 161 Core . | . . . . Treads 912 | . 627 285 . Legs 61 | 33 28 . . Wheels 252 | . . 91 161 Hover . | . . . . Flight . | . . . . Fastest Speed 100 | 120 120 100 115 Average Speed 151 | 120 158 148 135 Slowest Speed 160 | 120 160 160 150 Overloaded Moves . | . . . . Propulsion Burnouts . | . . . . Robots Hopped . | . . . . Cave-ins Triggered . | . . . . Exploration Rate (%) 36 | 4 99 27 16 Regions Visited 3 Branch Regions 1 Pre-discovered Areas . | . . . . Known Exits Taken . | . . . . Unknown Exits Taken 3 | 1 1 1 . Scrap Searched 1 | . . 1 . Spaces Dug . | . . . . Terrain Destroyed 10 | . . . 10 Melee . | . . . . Projectile 10 | . . . 10 AOE . | . . . . Terrain Rammed . | . . . . Walls Destroyed . | . . . . Machines Disabled . | . . . . Actions | -11 -10 -10 -8 --------- Run | Yrd Mat Sub Mat Total 1607 | 71 883 445 208 Wait 151 | 25 103 9 14 Move 1222 | 32 654 375 161 Hop . | . . . . Pick Up 26 | 3 16 1 6 Fast Attach 12 | 1 2 6 3 Attach 9 | . 3 3 3 Detach 4 | . 1 3 . Swap 9 | . 7 . 2 Drop 28 | 3 11 14 . Fire 141 | 7 86 29 19 Melee . | . . . . Ram . | . . . . Kick . | . . . . Crush . | . . . . Escape Stasis . | . . . . Rewire . | . . . . Trap . | . . . . Miscellaneous 5 | . . 5 . Route ------- -11/Scrapyard -10/Materials (discovered 5 exits: [*Mat x3] / [*Min] / [*Sub]) -10/Subcaves (discovered 2 exits: *Mat x2) -8/Materials History --------- Turn | Location | Event 1 | -11/Scrapyard | Discovered new exit (range 2) 92 | -11/Scrapyard | Entered Materials 304 | -10/Materials | Build established: Mutant 337 | -10/Materials | Discovered new exit (range 3) 535 | -10/Materials | Discovered new exit (range 6) 726 | -10/Materials | Central database locked down 864 | -10/Materials | Core integrity fell below 50% 1266 | -10/Materials | Discovered new exit (range 16) 1442 | -10/Materials | Discovered new exit (range 10) 1502 | -10/Materials | Discovered new exit (range 7) 1524 | -10/Materials | Entered Subcaves 1576 | -10/Subcaves | Discovered new exit (range 8) 1740 | -10/Subcaves | Ambushed by swarm of Subdwellers 1755 | -10/Subcaves | Core integrity fell below 20% 1792 | -10/Subcaves | Lost 3 allies 1882 | -10/Subcaves | Discovered new exit (range 16) 2054 | -10/Subcaves | A Subdweller sparked back to life 2054 | -10/Subcaves | A Subdweller sparked back to life 2054 | -10/Subcaves | A Subdweller sparked back to life 2098 | -10/Subcaves | Found Prototype Protection 2098 | -10/Subcaves | Identified Gun Armor 2100 | -10/Subcaves | Attached Gun Armor, gained temporary slots: Weapon x2 2203 | -10/Subcaves | Entered Materials 2203 | -8/Materials | Evolved 4 slots: Utility x4 2518 | -8/Materials | Self-destructed Last Messages --------------- Trojan loaded successfully. Testing... Terminal linked with 1 system. Awaiting botnet instructions. >>Index(Terminals) Found 12 terminals. Downloaded coordinate data. 02447_ ALERT: Suspicious activity at Terminal M003. Dispatching Investigation squad. 02466_ HV Slug penetrates W-25 Informer. 02466_ HV Slug penetrates Wall. 02469_ W-25 Informer destroyed. 02469_ HV Slug penetrates Wall. 02471_ U-05 Engineer builds a Wall. 02478_ Acquired 1 matter. 02481_ U-05 Engineer builds a Wall. 02507_ G-47 Trooper suffers critical hit (Destroy). 02507_ Destroyed Lgt. Nuclear Core. 02514_ G-47 Trooper destroyed. 02517_ Sub. Power Source shoots sparks and powers down. Map ----- +----------------------------------------------------+ | | | | | | | | | | | | | | | | | | | | | | | | | | | | | | | | | | | | | ###################????????????????????? | | # = ##????????????????????? | | """ "" # T ##????????????????????? | | """ Y" # ##????????????????????? | | """ "" # "" ########## ???????????? | | # "" ########## ???????????? | | # ! "" #### gg[# ???????????? | | # "" #### *g%@# ???????????? | | # "" #### #### ???????????? | | ####+#### #### #### ???????? | | ## #######+####### =#######+####????? | | *% # ????? | | T % # ????? | | ## ##### ############# """ # ????? | | ###/####### ####### # """ ? # ????? | | ### ##?????????????"""?? # ????? | | """ ### ##?????????????? ?????????? | | """ ### ##??????????????? ????????? | | """ ###+##????????????????? ???????? | | """ # ?????????????????????????? | | [[! G" # ?????????????????????????????? | | !! """ # ?????????????????????????????? | | [!! # ?????????????????????????????? | | ######### ?????????????????????????????? | | ######### ?????????????????????????????? | | ???????????????????????????????????????? | | ???????????????????????????????????????? | | ???????????????????????????????????????? | | ???????????????????????????????????????? | | ???????????????????????????????????????? | | ???????????????????????????????????????? | | ???????????????????????????????????????? | +----------------------------------------------------+ Best States ------------- Heat Dissipation 31 Energy Generation 15 Energy Capacity 250 Matter Stores 300 Matter Capacity 300 Sight Range 16 Terrain Scan Density 10 Armor Coverage 800 Evasion (%) 55 Targeting Accuracy 8 Recoil Reduction 2 Offensive Hacking 10 Item Schematics ----------------- None Robot Schematics ------------------ None Fabricated ------------ Nothing Alien Tech Used ----------------- None Achievements -------------- None Challenges ------------ None Game ------ Seed ChromaticReactiveArchive Manual? 0 Play Time 00:21:14 Cumulative 387.7 hours Start 2024.07.23 @ 22:43:00 End 2024.07.23 @ 23:01:48 Sessions 1 Manual Loads 0 Difficulty Rogue Special Mode None Game No. 216 Rogue 72 Adventurer 144 Explorer 0 Win Type - Total 6 Types 3/0/2/1/0/0/0/0/0 Lore% 74 Gallery% 82 Achievement% 66 Wizard Run 0 Options --------- Layout 0 ASCII 0 Keyboard 0 Movement Mouse Keybinds 0 Fullscreen 2 Font 20/SmallcapsGlow Map View 66x50 Zoom Use 0% Tactical HUD 1 Map Filters NONE Filters NONE Steam X RUN: 371ec62b-d0c6-4121-b5f1-3e2b336790d0